[Event "*** Titled Tuesday Blitz"]
[Site "Chess.com"]
[Date "2020.10.20"]
[Round "2"]
[White "Ajedrez_con_German"]
[Black "Oneofmyturns"]
[Result "0-1"]
[WhiteElo "2455"]
[BlackElo "2709"]
[TimeControl "180+1"]
[EndTime "10:18:36 PDT"]
[Termination "Oneofmyturns won by resignation"]

1. Nf3 {[%clk 0:03:00.9]} 1... d5 {[%clk 0:02:59.9]} 2. e3 {[%clk 0:02:58]} 2...
Nf6 {[%clk 0:03:00.1]} 3. c4 {[%clk 0:02:57.3]} 3... e6 {[%clk 0:02:59.1]} 4. b3
{[%clk 0:02:57.1]} 4... Bd6 {[%clk 0:02:52.5]} 5. Bb2 {[%clk 0:02:57]} 5... b6
{[%clk 0:02:52.7]} 6. Nc3 {[%clk 0:02:49.5]} 6... O-O {[%clk 0:02:52.4]} 7. cxd5
{[%clk 0:02:45.5]} 7... exd5 {[%clk 0:02:46]} 8. Be2 {[%clk 0:02:44.8]} 8... a6
{[%clk 0:02:41.8]} 9. O-O {[%clk 0:02:39.6]} 9... Re8 {[%clk 0:02:42.2]} 10. Rc1
{[%clk 0:02:28.8]} 10... Nbd7 {[%clk 0:02:41.4]} 11. d3 {[%clk 0:02:27.7]} 11...
Nf8 {[%clk 0:02:37.3]} 12. Nb1 {[%clk 0:02:21.3]} 12... Ng6 {[%clk 0:02:35.1]}
13. Nbd2 {[%clk 0:02:20.9]} 13... c5 {[%clk 0:02:27]} 14. Re1 {[%clk 0:02:19.3]}
14... b5 {[%clk 0:01:51.2]} 15. Bf1 {[%clk 0:02:17.2]} 15... Bb7 {[%clk
0:01:50.5]} 16. Rc2 {[%clk 0:02:11.5]} 16... Nd7 {[%clk 0:01:39.6]} 17. Qa1
{[%clk 0:02:07.8]} 17... f6 {[%clk 0:01:40]} 18. a3 {[%clk 0:02:05.9]} 18... Rc8
{[%clk 0:01:36.3]} 19. Qb1 {[%clk 0:02:01]} 19... Qe7 {[%clk 0:01:35.8]} 20. Qa1
{[%clk 0:01:49.1]} 20... Qf7 {[%clk 0:01:32.2]} 21. Qb1 {[%clk 0:01:45.6]} 21...
Nge5 {[%clk 0:01:23.6]} 22. Nxe5 {[%clk 0:01:37]} 22... fxe5 {[%clk 0:01:24.5]}
23. e4 {[%clk 0:01:32.3]} 23... d4 {[%clk 0:01:21.6]} 24. Nf3 {[%clk 0:01:17.8]}
24... Rf8 {[%clk 0:01:20.1]} 25. Bc1 {[%clk 0:01:11.7]} 25... Be7 {[%clk
0:01:15.3]} 26. Bg5 {[%clk 0:01:05.7]} 26... Bd6 {[%clk 0:01:12.6]} 27. Bh4
{[%clk 0:00:40.5]} 27... h6 {[%clk 0:01:05.7]} 28. Nd2 {[%clk 0:00:28.1]} 28...
g5 {[%clk 0:00:52.3]} 29. Bg3 {[%clk 0:00:27.9]} 29... Nf6 {[%clk 0:00:53]} 30.
b4 {[%clk 0:00:25.1]} 30... cxb4 {[%clk 0:00:51.1]} 31. Rxc8 {[%clk 0:00:23.8]}
31... Rxc8 {[%clk 0:00:52]} 32. axb4 {[%clk 0:00:24.2]} 32... Rc3 {[%clk
0:00:50.8]} 33. Rc1 {[%clk 0:00:14.5]} 33... Qc7 {[%clk 0:00:43.5]} 34. Rd1
{[%clk 0:00:10.7]} 34... Nh5 {[%clk 0:00:37.6]} 35. Qa2+ {[%clk 0:00:10.8]}
35... Qf7 {[%clk 0:00:34.1]} 36. Qxf7+ {[%clk 0:00:10.3]} 36... Kxf7 {[%clk
0:00:35]} 37. Nf3 {[%clk 0:00:08.4]} 37... Ke6 {[%clk 0:00:31.7]} 38. Rb1 {[%clk
0:00:07.5]} 38... Rc2 {[%clk 0:00:16.6]} 39. Ne1 {[%clk 0:00:07]} 39... Ra2
{[%clk 0:00:15.9]} 40. Nf3 {[%clk 0:00:07]} 40... Ra4 {[%clk 0:00:15.8]} 41. Be2
{[%clk 0:00:05.2]} 41... Nxg3 {[%clk 0:00:15.9]} 42. hxg3 {[%clk 0:00:05.2]}
42... Rxb4 {[%clk 0:00:16.5]} 43. Rc1 {[%clk 0:00:05.1]} 43... Rb2 {[%clk
0:00:16.3]} 44. Bd1 {[%clk 0:00:05.4]} 44... a5 {[%clk 0:00:16]} 45. Nh2 {[%clk
0:00:05.6]} 45... a4 {[%clk 0:00:14.7]} 46. Bg4+ {[%clk 0:00:05.7]} 46... Ke7
{[%clk 0:00:13.7]} 47. Bf5 {[%clk 0:00:05.2]} 47... a3 {[%clk 0:00:13.6]} 48.
Ng4 {[%clk 0:00:02.7]} 48... a2 {[%clk 0:00:13.8]} 0-1

[Event "*** Titled Tuesday Blitz"]
[Site "Chess.com"]
[Date "2020.10.20"]
[Round "2"]
[White "albi1999"]
[Black "mishanick"]
[Result "0-1"]
[WhiteElo "2610"]
[BlackElo "2988"]
[TimeControl "180+1"]
[EndTime "10:18:43 PDT"]
[Termination "mishanick won by resignation"]

1. d4 {[%clk 0:03:00.9]} 1... Nf6 {[%clk 0:02:59.6]} 2. c4 {[%clk 0:02:57.5]}
2... e6 {[%clk 0:02:59.4]} 3. Nf3 {[%clk 0:02:55.9]} 3... d5 {[%clk 0:02:59.5]}
4. g3 {[%clk 0:02:56.2]} 4... Bb4+ {[%clk 0:02:58.5]} 5. Bd2 {[%clk 0:02:56.5]}
5... Be7 {[%clk 0:02:56.3]} 6. Bg2 {[%clk 0:02:56.3]} 6... O-O {[%clk
0:02:56.4]} 7. O-O {[%clk 0:02:56.8]} 7... Nbd7 {[%clk 0:02:56.7]} 8. Qc2 {[%clk
0:02:57]} 8... c6 {[%clk 0:02:56.1]} 9. Rd1 {[%clk 0:02:55.5]} 9... b6 {[%clk
0:02:39.1]} 10. b3 {[%clk 0:02:55.2]} 10... a5 {[%clk 0:02:38.7]} 11. Bc3 {[%clk
0:02:54.5]} 11... Ba6 {[%clk 0:02:38.5]} 12. Nbd2 {[%clk 0:02:54.5]} 12... Rc8
{[%clk 0:02:38.1]} 13. e4 {[%clk 0:02:42]} 13... c5 {[%clk 0:02:32.5]} 14. exd5
{[%clk 0:02:40.3]} 14... exd5 {[%clk 0:02:32.4]} 15. Qf5 {[%clk 0:02:33.2]}
15... dxc4 {[%clk 0:02:09.2]} 16. Nxc4 {[%clk 0:02:27.4]} 16... cxd4 {[%clk
0:01:52]} 17. Nxd4 {[%clk 0:02:24.4]} 17... Rc5 {[%clk 0:01:50]} 18. Qh3 {[%clk
0:02:15.3]} 18... Bxc4 {[%clk 0:01:35.6]} 19. bxc4 {[%clk 0:02:12.5]} 19... Qc7
{[%clk 0:01:32.1]} 20. Nb5 {[%clk 0:01:06.7]} 20... Rxb5 {[%clk 0:01:30.6]} 21.
Bxf6 {[%clk 0:01:04.9]} 21... Bxf6 {[%clk 0:01:29.9]} 22. cxb5 {[%clk
0:00:58.7]} 22... Bxa1 {[%clk 0:01:29.7]} 23. Qxd7 {[%clk 0:00:58]} 23... Qc3
{[%clk 0:01:23.2]} 24. Bd5 {[%clk 0:00:51.9]} 24... Qf6 {[%clk 0:01:17.7]} 25.
Qc6 {[%clk 0:00:49.3]} 25... g6 {[%clk 0:01:12.2]} 26. Qxf6 {[%clk 0:00:48.3]}
26... Bxf6 {[%clk 0:01:13.1]} 27. Bb3 {[%clk 0:00:48.4]} 27... Be7 {[%clk
0:01:00.7]} 28. Rd7 {[%clk 0:00:46.6]} 28... Bc5 {[%clk 0:01:00.9]} 29. Kg2
{[%clk 0:00:45]} 29... Kg7 {[%clk 0:01:00.9]} 30. g4 {[%clk 0:00:44.9]} 30... g5
{[%clk 0:00:59.2]} 31. h3 {[%clk 0:00:43.3]} 31... h6 {[%clk 0:00:59.5]} 32. Kf3
{[%clk 0:00:43.3]} 32... Kf6 {[%clk 0:00:59.6]} 33. Rb7 {[%clk 0:00:41.8]} 33...
Kg6 {[%clk 0:00:52.3]} 34. Rd7 {[%clk 0:00:41.5]} 34... Kf6 {[%clk 0:00:44.9]}
35. Rb7 {[%clk 0:00:40.5]} 35... Ke5 {[%clk 0:00:45.3]} 36. Rxf7 {[%clk
0:00:39.6]} 36... Rd8 {[%clk 0:00:45.8]} 37. Rf5+ {[%clk 0:00:38.9]} 37... Kd4
{[%clk 0:00:46.1]} 38. Rf6 {[%clk 0:00:38.5]} 38... Rh8 {[%clk 0:00:45.7]} 39.
a4 {[%clk 0:00:36.3]} 39... Kc3 {[%clk 0:00:45.5]} 40. Bd1 {[%clk 0:00:36.5]}
40... Rd8 {[%clk 0:00:43]} 41. Be2 {[%clk 0:00:35.7]} 41... Rd4 {[%clk
0:00:43.5]} 42. Rxh6 {[%clk 0:00:34.4]} 42... Rxa4 {[%clk 0:00:43.8]} 43. h4
{[%clk 0:00:34.8]} 43... Rf4+ {[%clk 0:00:44.2]} 44. Kg3 {[%clk 0:00:31.8]}
44... Bxf2+ {[%clk 0:00:43.8]} 45. Kh3 {[%clk 0:00:27.6]} 45... gxh4 {[%clk
0:00:41.2]} 46. g5 {[%clk 0:00:25.5]} 46... a4 {[%clk 0:00:40]} 47. g6 {[%clk
0:00:24.5]} 47... Bd4 {[%clk 0:00:39.6]} 48. Bg4 {[%clk 0:00:20.5]} 48... Re4
{[%clk 0:00:30.4]} 49. g7 {[%clk 0:00:16.4]} 49... Bxg7 {[%clk 0:00:28.4]} 50.
Rxb6 {[%clk 0:00:16.4]} 50... a3 {[%clk 0:00:28.7]} 51. Ra6 {[%clk 0:00:14]}
51... Kb2 {[%clk 0:00:23.8]} 52. b6 {[%clk 0:00:14.3]} 52... a2 {[%clk
0:00:20.7]} 53. b7 {[%clk 0:00:14]} 53... Rb4 {[%clk 0:00:21.3]} 54. Be6 {[%clk
0:00:14]} 54... a1=Q {[%clk 0:00:21]} 55. Rxa1 {[%clk 0:00:13.7]} 55... Kxa1
{[%clk 0:00:21.9]} 0-1

[Event "*** Titled Tuesday Blitz"]
[Site "Chess.com"]
[Date "2020.10.20"]
[Round "2"]
[White "bazar-wokzal"]
[Black "LittlePeasant"]
[Result "1-0"]
[WhiteElo "2530"]
[BlackElo "2799"]
[TimeControl "180+1"]
[EndTime "10:18:43 PDT"]
[Termination "bazar-wokzal won by resignation"]

1. e4 {[%clk 0:02:55.3]} 1... e6 {[%clk 0:02:59.6]} 2. d4 {[%clk 0:02:53.9]}
2... d5 {[%clk 0:03:00]} 3. exd5 {[%clk 0:02:53.4]} 3... exd5 {[%clk 0:02:59.7]}
4. Nf3 {[%clk 0:02:54.1]} 4... Nc6 {[%clk 0:02:58.8]} 5. Bd3 {[%clk 0:02:53.3]}
5... Bg4 {[%clk 0:02:58.6]} 6. O-O {[%clk 0:02:52.7]} 6... Nxd4 {[%clk
0:02:49.6]} 7. Qe1+ {[%clk 0:02:49.2]} 7... Ne6 {[%clk 0:02:49.6]} 8. Ne5 {[%clk
0:02:47.3]} 8... Bh5 {[%clk 0:02:48.6]} 9. Bb5+ {[%clk 0:02:15.8]} 9... c6
{[%clk 0:02:48.6]} 10. Nxc6 {[%clk 0:02:15.7]} 10... bxc6 {[%clk 0:02:33.1]} 11.
Bxc6+ {[%clk 0:02:15.4]} 11... Ke7 {[%clk 0:02:33.7]} 12. Bxa8 {[%clk
0:02:13.9]} 12... Qxa8 {[%clk 0:02:33.2]} 13. Nc3 {[%clk 0:02:10]} 13... Nf6
{[%clk 0:02:25.6]} 14. Bg5 {[%clk 0:02:03.8]} 14... h6 {[%clk 0:02:25.8]} 15.
Bxf6+ {[%clk 0:01:50.6]} 15... Kxf6 {[%clk 0:02:26.7]} 16. h3 {[%clk 0:01:36.5]}
16... Bc5 {[%clk 0:02:17.4]} 17. Kh1 {[%clk 0:01:31]} 17... Nf4 {[%clk
0:01:19.9]} 18. f3 {[%clk 0:01:20.1]} 18... Re8 {[%clk 0:01:12.4]} 19. Qg3
{[%clk 0:01:16.3]} 19... g5 {[%clk 0:01:10.7]} 20. Rad1 {[%clk 0:01:14.5]} 20...
Bg6 {[%clk 0:01:09.5]} 21. Qh2 {[%clk 0:00:59.5]} 21... Kg7 {[%clk 0:01:06.3]}
22. g3 {[%clk 0:00:58.6]} 22... d4 {[%clk 0:00:58.6]} 23. Na4 {[%clk 0:00:45.7]}
23... Re2 {[%clk 0:00:49.6]} 24. Rf2 {[%clk 0:00:45.8]} 24... Rxf2 {[%clk
0:00:45.8]} 25. Qxf2 {[%clk 0:00:44.3]} 25... Nxh3 {[%clk 0:00:46.7]} 26. Qg2
{[%clk 0:00:40.7]} 26... Be7 {[%clk 0:00:28.2]} 27. Rxd4 {[%clk 0:00:38.8]}
27... Bf6 {[%clk 0:00:28.1]} 28. Rd2 {[%clk 0:00:31.8]} 28... g4 {[%clk
0:00:27.9]} 29. Kh2 {[%clk 0:00:22.3]} 29... Ng5 {[%clk 0:00:27.3]} 30. fxg4
{[%clk 0:00:21.9]} 30... Nf3+ {[%clk 0:00:25.8]} 31. Kh3 {[%clk 0:00:22.1]}
31... h5 {[%clk 0:00:24.1]} 32. gxh5 {[%clk 0:00:17.8]} 32... Bf5+ {[%clk
0:00:15]} 33. g4 {[%clk 0:00:17.7]} 33... Ng5+ {[%clk 0:00:14.8]} 34. Kh2 {[%clk
0:00:16.6]} 34... Be5+ {[%clk 0:00:15.1]} 35. Kg1 {[%clk 0:00:15.5]} 35... Be4
{[%clk 0:00:15.3]} 36. Qe2 {[%clk 0:00:10.2]} 36... Nf3+ {[%clk 0:00:15.1]} 37.
Kf2 {[%clk 0:00:09.5]} 37... Nxd2 {[%clk 0:00:12]} 38. Qxd2 {[%clk 0:00:10.4]}
38... Bf6 {[%clk 0:00:10.1]} 39. Qf4 {[%clk 0:00:10.2]} 39... Qc6 {[%clk
0:00:09.9]} 40. Nc3 {[%clk 0:00:09.8]} 40... Bxc3 {[%clk 0:00:09.9]} 41. bxc3
{[%clk 0:00:09.4]} 41... Bxc2 {[%clk 0:00:10.8]} 42. Qg5+ {[%clk 0:00:09]} 42...
Kh7 {[%clk 0:00:11.3]} 43. Qe5 {[%clk 0:00:07.8]} 43... Qb6+ {[%clk 0:00:10.4]}
44. Kg3 {[%clk 0:00:07.7]} 44... Qe6 {[%clk 0:00:09.9]} 45. Qxe6 {[%clk
0:00:07.3]} 45... fxe6 {[%clk 0:00:10.8]} 46. Kf4 {[%clk 0:00:07.6]} 46... Bb1
{[%clk 0:00:10.8]} 47. a3 {[%clk 0:00:07]} 47... Kg7 {[%clk 0:00:11.7]} 48. g5
{[%clk 0:00:07]} 48... Kf7 {[%clk 0:00:12.6]} 49. Ke5 {[%clk 0:00:07.3]} 49...
Ke7 {[%clk 0:00:13.1]} 50. g6 {[%clk 0:00:07.6]} 50... Bc2 {[%clk 0:00:13.5]}
51. c4 {[%clk 0:00:07.7]} 51... Bd1 {[%clk 0:00:10.5]} 52. h6 {[%clk 0:00:07]}
52... Bc2 {[%clk 0:00:11.4]} 53. h7 {[%clk 0:00:07.5]} 1-0

[Event "*** Titled Tuesday Blitz"]
[Site "Chess.com"]
[Date "2020.10.20"]
[Round "2"]
[White "Zhani-Z"]
[Black "GukeshDommaraju"]
[Result "0-1"]
[WhiteElo "2527"]
[BlackElo "2836"]
[TimeControl "180+1"]
[EndTime "10:18:45 PDT"]
[Termination "GukeshDommaraju won by resignation"]

1. e4 {[%clk 0:03:00.9]} 1... c6 {[%clk 0:02:59.3]} 2. d4 {[%clk 0:03:00.5]}
2... d5 {[%clk 0:02:58.9]} 3. exd5 {[%clk 0:03:01]} 3... cxd5 {[%clk 0:02:58.9]}
4. Bd3 {[%clk 0:03:01.6]} 4... Nf6 {[%clk 0:02:58.2]} 5. c3 {[%clk 0:03:00.7]}
5... Bg4 {[%clk 0:02:57.7]} 6. Qb3 {[%clk 0:02:59.9]} 6... Qc7 {[%clk 0:02:54]}
7. Ne2 {[%clk 0:02:48.1]} 7... Nc6 {[%clk 0:02:52.3]} 8. Bf4 {[%clk 0:02:47.7]}
8... Qd7 {[%clk 0:02:51.1]} 9. Nd2 {[%clk 0:02:36.3]} 9... e6 {[%clk 0:02:49.8]}
10. Ng3 {[%clk 0:02:24.4]} 10... Bd6 {[%clk 0:02:44.4]} 11. Bxd6 {[%clk
0:02:21]} 11... Qxd6 {[%clk 0:02:43.9]} 12. h3 {[%clk 0:02:03.4]} 12... Bh5
{[%clk 0:02:37.1]} 13. Nxh5 {[%clk 0:02:01.1]} 13... Nxh5 {[%clk 0:02:38]} 14.
O-O {[%clk 0:01:55.4]} 14... O-O {[%clk 0:02:36.3]} 15. Rfe1 {[%clk 0:01:52.4]}
15... Rab8 {[%clk 0:02:34.5]} 16. a4 {[%clk 0:01:50.1]} 16... a6 {[%clk
0:02:14.6]} 17. Qd1 {[%clk 0:01:28.1]} 17... Nf4 {[%clk 0:02:11.5]} 18. Bf1
{[%clk 0:01:27.9]} 18... Rfc8 {[%clk 0:01:51.5]} 19. Nb3 {[%clk 0:01:13.6]}
19... Ng6 {[%clk 0:01:46]} 20. a5 {[%clk 0:01:04]} 20... Nf8 {[%clk 0:01:38.8]}
21. Qd2 {[%clk 0:00:40]} 21... Nd7 {[%clk 0:01:35.1]} 22. g3 {[%clk 0:00:23.1]}
22... g6 {[%clk 0:01:34.6]} 23. h4 {[%clk 0:00:23.1]} 23... h5 {[%clk
0:01:31.8]} 24. Re3 {[%clk 0:00:22.1]} 24... b5 {[%clk 0:01:27.6]} 25. axb6
{[%clk 0:00:21.8]} 25... Rxb6 {[%clk 0:01:27.2]} 26. Ra3 {[%clk 0:00:07.3]}
26... Rcb8 {[%clk 0:01:25.2]} 27. Qc2 {[%clk 0:00:07.9]} 27... a5 {[%clk
0:01:14.7]} 28. Re2 {[%clk 0:00:05.5]} 28... a4 {[%clk 0:01:13.2]} 29. Nc5
{[%clk 0:00:05.6]} 29... Nxc5 {[%clk 0:01:12.9]} 30. dxc5 {[%clk 0:00:06]} 30...
Qxc5 {[%clk 0:01:13]} 31. Ra2 {[%clk 0:00:03.5]} 31... Na5 {[%clk 0:00:56.7]}
32. Qxa4 {[%clk 0:00:03.2]} 32... Nc4 {[%clk 0:00:55.4]} 33. b4 {[%clk
0:00:03.5]} 33... Qc7 {[%clk 0:00:53.7]} 34. Qd1 {[%clk 0:00:04]} 34... Nd6
{[%clk 0:00:53.2]} 35. Rec2 {[%clk 0:00:02]} 35... Ne4 {[%clk 0:00:52.4]} 36.
Qc1 {[%clk 0:00:02.7]} 36... Rc6 {[%clk 0:00:52.1]} 37. Ra3 {[%clk 0:00:02.9]}
37... Rxb4 {[%clk 0:00:49.8]} 38. cxb4 {[%clk 0:00:02.9]} 38... Rxc2 {[%clk
0:00:49.7]} 39. Qe3 {[%clk 0:00:02.9]} 39... Rxf2 {[%clk 0:00:41.1]} 40. Ra7
{[%clk 0:00:03.5]} 40... Qc2 {[%clk 0:00:32.5]} 41. b5 {[%clk 0:00:03.1]} 41...
Rxf1+ {[%clk 0:00:23.7]} 42. Kxf1 {[%clk 0:00:03.1]} 42... Qb1+ {[%clk
0:00:23.2]} 43. Kg2 {[%clk 0:00:02.7]} 43... Qxb5 {[%clk 0:00:23.3]} 44. Ra8+
{[%clk 0:00:02.8]} 44... Kh7 {[%clk 0:00:23.3]} 45. Qd4 {[%clk 0:00:03.7]} 45...
Qe2+ {[%clk 0:00:22.9]} 46. Kg1 {[%clk 0:00:03.4]} 46... Qe1+ {[%clk 0:00:23.1]}
47. Kg2 {[%clk 0:00:03.8]} 47... Qxg3+ {[%clk 0:00:23.3]} 48. Kf1 {[%clk
0:00:03.6]} 48... Qf4+ {[%clk 0:00:23]} 49. Ke1 {[%clk 0:00:03.2]} 49... e5
{[%clk 0:00:21.3]} 50. Qxd5 {[%clk 0:00:02.6]} 50... Qf2+ {[%clk 0:00:21]} 51.
Kd1 {[%clk 0:00:02.6]} 51... Nc3+ {[%clk 0:00:20.9]} 0-1

[Event "*** Titled Tuesday Blitz"]
[Site "Chess.com"]
[Date "2020.10.20"]
[Round "2"]
[White "Margency"]
[Black "queen_iryna"]
[Result "1-0"]
[WhiteElo "2674"]
[BlackElo "2312"]
[TimeControl "180+1"]
[EndTime "10:18:45 PDT"]
[Termination "Margency won on time"]

1. e4 {[%clk 0:03:00.9]} 1... d6 {[%clk 0:03:00.3]} 2. d4 {[%clk 0:03:00.9]}
2... Nf6 {[%clk 0:03:00.5]} 3. Nc3 {[%clk 0:03:01.5]} 3... e5 {[%clk 0:03:00.7]}
4. Nf3 {[%clk 0:03:01.9]} 4... Nbd7 {[%clk 0:03:00.4]} 5. Bc4 {[%clk 0:03:02]}
5... Be7 {[%clk 0:03:00.3]} 6. a4 {[%clk 0:03:02.2]} 6... O-O {[%clk 0:03:00]}
7. O-O {[%clk 0:03:02.7]} 7... c6 {[%clk 0:03:00.4]} 8. Re1 {[%clk 0:03:03.1]}
8... h6 {[%clk 0:03:00.7]} 9. h3 {[%clk 0:03:02.6]} 9... Re8 {[%clk 0:03:00.9]}
10. Ba2 {[%clk 0:03:02.3]} 10... Bf8 {[%clk 0:03:00]} 11. d5 {[%clk 0:02:53.5]}
11... cxd5 {[%clk 0:02:46.1]} 12. Nxd5 {[%clk 0:02:53]} 12... Nxd5 {[%clk
0:02:46]} 13. Bxd5 {[%clk 0:02:53.5]} 13... Nf6 {[%clk 0:02:42.2]} 14. Bb3
{[%clk 0:02:46.9]} 14... Be6 {[%clk 0:02:40.9]} 15. c3 {[%clk 0:02:46.9]} 15...
Bxb3 {[%clk 0:02:29.1]} 16. Qxb3 {[%clk 0:02:46.7]} 16... Qc7 {[%clk 0:02:16.4]}
17. Nh4 {[%clk 0:02:30.2]} 17... Qc6 {[%clk 0:02:12.7]} 18. Qb5 {[%clk
0:02:16.3]} 18... d5 {[%clk 0:01:59.9]} 19. exd5 {[%clk 0:02:11.8]} 19... Qxd5
{[%clk 0:01:57.3]} 20. Nf5 {[%clk 0:02:06.1]} 20... a6 {[%clk 0:01:35.4]} 21.
Qxd5 {[%clk 0:02:00.7]} 21... Nxd5 {[%clk 0:01:36.3]} 22. Bd2 {[%clk 0:01:47]}
22... Bc5 {[%clk 0:01:35.1]} 23. Rad1 {[%clk 0:01:43.3]} 23... Rad8 {[%clk
0:01:29]} 24. Bc1 {[%clk 0:01:37.8]} 24... Nf4 {[%clk 0:01:16.7]} 25. Bxf4
{[%clk 0:01:32.3]} 25... exf4 {[%clk 0:01:17.6]} 26. Rxe8+ {[%clk 0:01:31.1]}
26... Rxe8 {[%clk 0:01:17.1]} 27. Kf1 {[%clk 0:01:31.2]} 27... g6 {[%clk
0:01:02.2]} 28. Nxh6+ {[%clk 0:01:24.9]} 28... Kg7 {[%clk 0:01:02.1]} 29. Ng4
{[%clk 0:01:25.3]} 29... Re7 {[%clk 0:00:48.6]} 30. Rd5 {[%clk 0:01:22.3]} 30...
Bb6 {[%clk 0:00:37.8]} 31. Ne5 {[%clk 0:01:17.5]} 31... Bc7 {[%clk 0:00:34.1]}
32. Nf3 {[%clk 0:01:02.3]} 32... Kf6 {[%clk 0:00:27.6]} 33. c4 {[%clk
0:01:01.4]} 33... Bb8 {[%clk 0:00:19.9]} 34. b3 {[%clk 0:00:57.6]} 34... Re4
{[%clk 0:00:17.4]} 35. Rd7 {[%clk 0:00:50.7]} 35... Re7 {[%clk 0:00:17.3]} 36.
Rxe7 {[%clk 0:00:49.3]} 36... Kxe7 {[%clk 0:00:18.2]} 37. Ke2 {[%clk 0:00:49.7]}
37... Kd6 {[%clk 0:00:16.9]} 38. Kd3 {[%clk 0:00:48.7]} 38... Kc5 {[%clk
0:00:16.9]} 39. Kc3 {[%clk 0:00:47.6]} 39... a5 {[%clk 0:00:13.9]} 40. Ng5
{[%clk 0:00:44.9]} 40... f6 {[%clk 0:00:11.9]} 41. Ne4+ {[%clk 0:00:41.4]} 41...
Kc6 {[%clk 0:00:12.1]} 42. f3 {[%clk 0:00:39.7]} 42... Be5+ {[%clk 0:00:12]} 43.
Kd3 {[%clk 0:00:39.9]} 43... g5 {[%clk 0:00:11.7]} 44. Nf2 {[%clk 0:00:36.2]}
44... b6 {[%clk 0:00:11.6]} 45. Ng4 {[%clk 0:00:35.1]} 45... Ba1 {[%clk
0:00:10.5]} 46. Nh6 {[%clk 0:00:34.4]} 46... Kc5 {[%clk 0:00:10.1]} 47. Nf5
{[%clk 0:00:33.7]} 47... Kb4 {[%clk 0:00:09.7]} 48. Kc2 {[%clk 0:00:34]} 48...
Kc5 {[%clk 0:00:09.1]} 49. h4 {[%clk 0:00:34]} 49... gxh4 {[%clk 0:00:08.5]} 50.
Nxh4 {[%clk 0:00:34.2]} 50... Kb4 {[%clk 0:00:08.1]} 51. Ng6 {[%clk 0:00:32.8]}
51... Be5 {[%clk 0:00:03.2]} 52. Nxe5 {[%clk 0:00:29]} 52... fxe5 {[%clk
0:00:04.1]} 53. Kb2 {[%clk 0:00:29.6]} 53... Kc5 {[%clk 0:00:04.1]} 54. Kc3
{[%clk 0:00:30.2]} 54... Kc6 {[%clk 0:00:04.2]} 55. b4 {[%clk 0:00:30.3]} 55...
Kd6 {[%clk 0:00:01.7]} 56. c5+ {[%clk 0:00:29.9]} 56... bxc5 {[%clk 0:00:01.5]}
57. bxa5 {[%clk 0:00:29.9]} 57... Kc6 {[%clk 0:00:01.8]} 58. Kc4 {[%clk
0:00:30.3]} 1-0

[Event "*** Titled Tuesday Blitz"]
[Site "Chess.com"]
[Date "2020.10.20"]
[Round "2"]
[White "Ladislav1969"]
[Black "ViktoriyaTarasova"]
[Result "0-1"]
[WhiteElo "2420"]
[BlackElo "2253"]
[TimeControl "180+1"]
[EndTime "10:18:48 PDT"]
[Termination "ViktoriyaTarasova won on time"]

1. e4 {[%clk 0:03:00.9]} 1... e5 {[%clk 0:02:59.2]} 2. Bc4 {[%clk 0:03:00.2]}
2... Nf6 {[%clk 0:02:57.7]} 3. d3 {[%clk 0:03:00.8]} 3... c6 {[%clk 0:02:57.7]}
4. Nf3 {[%clk 0:03:00.9]} 4... d5 {[%clk 0:02:56.8]} 5. Bb3 {[%clk 0:03:01.2]}
5... Bd6 {[%clk 0:02:55.1]} 6. Nc3 {[%clk 0:03:01.2]} 6... d4 {[%clk 0:02:50.7]}
7. Ne2 {[%clk 0:03:00.7]} 7... h6 {[%clk 0:02:49.8]} 8. c3 {[%clk 0:02:59.1]}
8... c5 {[%clk 0:02:49.5]} 9. Nd2 {[%clk 0:02:51.6]} 9... O-O {[%clk 0:02:48.4]}
10. Nc4 {[%clk 0:02:51.3]} 10... Bc7 {[%clk 0:02:48.8]} 11. a4 {[%clk
0:02:51.4]} 11... Nc6 {[%clk 0:02:47.8]} 12. O-O {[%clk 0:02:48.9]} 12... Bg4
{[%clk 0:02:39.2]} 13. f3 {[%clk 0:02:43.3]} 13... Be6 {[%clk 0:02:39.1]} 14. f4
{[%clk 0:02:39.9]} 14... exf4 {[%clk 0:02:38]} 15. Nxf4 {[%clk 0:02:37.5]} 15...
Bxf4 {[%clk 0:02:33.1]} 16. Bxf4 {[%clk 0:02:37]} 16... Ng4 {[%clk 0:02:22.3]}
17. h3 {[%clk 0:02:31]} 17... Bxc4 {[%clk 0:02:21.8]} 18. Bxc4 {[%clk
0:02:25.3]} 18... Nge5 {[%clk 0:02:15.8]} 19. Bd5 {[%clk 0:02:25]} 19... Qe7
{[%clk 0:02:09.9]} 20. Rf2 {[%clk 0:02:12.1]} 20... Kh7 {[%clk 0:02:00]} 21. Qf1
{[%clk 0:02:11.4]} 21... Ng6 {[%clk 0:01:56.6]} 22. Bd2 {[%clk 0:02:04.3]} 22...
Nce5 {[%clk 0:01:49.3]} 23. g3 {[%clk 0:01:50.9]} 23... Rad8 {[%clk 0:01:45.7]}
24. Kg2 {[%clk 0:01:47.6]} 24... f6 {[%clk 0:01:37.9]} 25. Qe2 {[%clk
0:01:45.3]} 25... Qc7 {[%clk 0:01:36.5]} 26. h4 {[%clk 0:01:43.4]} 26... Ne7
{[%clk 0:01:36.1]} 27. c4 {[%clk 0:01:34.2]} 27... Qd7 {[%clk 0:01:27.1]} 28.
Bf4 {[%clk 0:01:24.3]} 28... N7g6 {[%clk 0:01:21.2]} 29. Bxe5 {[%clk 0:01:21.5]}
29... Nxe5 {[%clk 0:01:16.6]} 30. Rf5 {[%clk 0:01:16.3]} 30... g6 {[%clk
0:01:10.2]} 31. Rf4 {[%clk 0:01:13.9]} 31... Kg7 {[%clk 0:01:06.6]} 32. b3
{[%clk 0:01:11.5]} 32... b6 {[%clk 0:01:04.6]} 33. Raf1 {[%clk 0:01:03.7]} 33...
a5 {[%clk 0:01:02.8]} 34. g4 {[%clk 0:01:00.9]} 34... g5 {[%clk 0:00:58]} 35.
hxg5 {[%clk 0:00:58.6]} 35... hxg5 {[%clk 0:00:56.5]} 36. Rf5 {[%clk 0:00:58.4]}
36... Ng6 {[%clk 0:00:55]} 37. Rh1 {[%clk 0:00:47.4]} 37... Nf4+ {[%clk
0:00:46]} 38. Rxf4 {[%clk 0:00:46.8]} 38... gxf4 {[%clk 0:00:46.7]} 39. Qf3
{[%clk 0:00:45.7]} 39... Qd6 {[%clk 0:00:31.6]} 40. Rh5 {[%clk 0:00:38.5]} 40...
Rh8 {[%clk 0:00:31.2]} 41. Rf5 {[%clk 0:00:38.2]} 41... Rh6 {[%clk 0:00:24.5]}
42. g5 {[%clk 0:00:30.2]} 42... fxg5 {[%clk 0:00:20.6]} 43. Rf7+ {[%clk
0:00:26.6]} 43... Kh8 {[%clk 0:00:20.7]} 44. Qg4 {[%clk 0:00:20.4]} 44... Qg6
{[%clk 0:00:20.1]} 45. e5 {[%clk 0:00:07.2]} 45... Rxd5 {[%clk 0:00:18.6]} 46.
Rf8+ {[%clk 0:00:05.9]} 46... Kg7 {[%clk 0:00:17.5]} 47. Qc8 {[%clk 0:00:05.8]}
47... f3+ {[%clk 0:00:16.3]} 48. Kg3 {[%clk 0:00:03.7]} 48... Rh3+ {[%clk
0:00:14.6]} 49. Kxh3 {[%clk 0:00:01.5]} 49... Qh5+ {[%clk 0:00:14.5]} 50. Kg3
{[%clk 0:00:01.3]} 50... Qh4+ {[%clk 0:00:15]} 51. Kxf3 {[%clk 0:00:01.5]} 51...
Qh1+ {[%clk 0:00:14.7]} 0-1